[Event "*** Titled Tuesday Blitz"]
[Site "Chess.com"]
[Date "2019.06.04"]
[Round "2"]
[White "PawnEatingZombie"]
[Black "Rakesh"]
[Result "0-1"]
[WhiteElo "2153"]
[BlackElo "2267"]
[TimeControl "180+2"]
[EndTime "13:24:32 PDT"]
[Termination "Rakesh won by resignation"]

1. d4 {[%clk 0:03:01.9]} 1... c5 {[%clk 0:02:58.5]} 2. d5 {[%clk 0:03:02.3]}
2... e5 {[%clk 0:02:58.2]} 3. e4 {[%clk 0:03:02.1]} 3... d6 {[%clk 0:02:56.8]}
4. Bb5+ {[%clk 0:02:59.2]} 4... Nd7 {[%clk 0:02:56.5]} 5. a4 {[%clk 0:03:00.4]}
5... g6 {[%clk 0:02:55.9]} 6. f4 {[%clk 0:02:58]} 6... Bg7 {[%clk 0:02:55]} 7.
Nf3 {[%clk 0:02:58.9]} 7... exf4 {[%clk 0:02:49.9]} 8. O-O {[%clk 0:02:57.7]}
8... a6 {[%clk 0:02:48.9]} 9. Bxd7+ {[%clk 0:02:58.1]} 9... Qxd7 {[%clk
0:02:47.6]} 10. Nbd2 {[%clk 0:02:44.7]} 10... Rb8 {[%clk 0:02:13.9]} 11. a5
{[%clk 0:02:43]} 11... Nf6 {[%clk 0:02:09.6]} 12. Nc4 {[%clk 0:02:23.8]} 12...
O-O {[%clk 0:02:09.7]} 13. Bxf4 {[%clk 0:02:23.6]} 13... Nxe4 {[%clk 0:02:10.5]}
14. c3 {[%clk 0:02:10.3]} 14... Re8 {[%clk 0:01:49.1]} 15. Nfd2 {[%clk
0:02:08.5]} 15... Nxd2 {[%clk 0:01:08]} 16. Qxd2 {[%clk 0:02:10.4]} 16... Bf8
{[%clk 0:01:05.5]} 17. Rae1 {[%clk 0:01:41.5]} 17... Rxe1 {[%clk 0:00:54.5]} 18.
Rxe1 {[%clk 0:01:43.4]} 18... Qd8 {[%clk 0:00:38.9]} 19. Qd3 {[%clk 0:01:29.2]}
19... Bf5 {[%clk 0:00:37.3]} 20. Qg3 {[%clk 0:01:30.7]} 20... h5 {[%clk
0:00:25.7]} 21. Bxd6 {[%clk 0:01:23.3]} 21... h4 {[%clk 0:00:26.9]} 22. Qe5
{[%clk 0:01:20.5]} 22... Bg7 {[%clk 0:00:26.7]} 23. Qe7 {[%clk 0:01:20.7]} 23...
Qxe7 {[%clk 0:00:22.4]} 24. Bxe7 {[%clk 0:01:14.2]} 24... Bd3 {[%clk 0:00:20.8]}
25. Nb6 {[%clk 0:01:14.6]} 25... Bf8 {[%clk 0:00:15.2]} 26. d6 {[%clk
0:01:11.7]} 26... Bxe7 {[%clk 0:00:15.5]} 27. Rxe7 {[%clk 0:01:12.1]} 27... Rd8
{[%clk 0:00:15]} 28. d7 {[%clk 0:00:48.3]} 28... Kf8 {[%clk 0:00:15.4]} 29. Re5
{[%clk 0:00:49.7]} 29... Bb5 {[%clk 0:00:14.5]} 30. Rxc5 {[%clk 0:00:48]} 30...
Bxd7 {[%clk 0:00:15.8]} 31. Rd5 {[%clk 0:00:41.1]} 31... Ke7 {[%clk 0:00:16.9]}
32. Rd4 {[%clk 0:00:21.4]} 32... Be6 {[%clk 0:00:17.1]} 33. Rxh4 {[%clk
0:00:20.6]} 33... Rd1+ {[%clk 0:00:17.4]} 34. Kf2 {[%clk 0:00:20.8]} 34... Rd2+
{[%clk 0:00:19.3]} 35. Kg3 {[%clk 0:00:18.8]} 35... Rxb2 {[%clk 0:00:21.2]} 36.
Rd4 {[%clk 0:00:12.1]} 36... Rb3 {[%clk 0:00:20.5]} 37. Rd3 {[%clk 0:00:09.8]}
37... Ra3 {[%clk 0:00:21.9]} 38. h4 {[%clk 0:00:02.2]} 38... Rxa5 {[%clk
0:00:23.1]} 39. c4 {[%clk 0:00:02.2]} 39... Rc5 {[%clk 0:00:22.4]} 40. Nd5+
{[%clk 0:00:03.3]} 40... Bxd5 {[%clk 0:00:23.2]} 41. cxd5 {[%clk 0:00:04.7]}
41... Kd6 {[%clk 0:00:24.1]} 42. Kf4 {[%clk 0:00:05.9]} 42... f6 {[%clk
0:00:25]} 43. g4 {[%clk 0:00:06.3]} 43... Rc4+ {[%clk 0:00:26.1]} 44. Kf3 {[%clk
0:00:06.9]} 44... b5 {[%clk 0:00:25.8]} 45. Ra3 {[%clk 0:00:07.4]} 45... Ra4
{[%clk 0:00:25.9]} 46. Re3 {[%clk 0:00:07.2]} 46... b4 {[%clk 0:00:26.4]} 47.
Re8 {[%clk 0:00:07.7]} 47... b3 {[%clk 0:00:26.8]} 48. Rd8+ {[%clk 0:00:09]}
48... Kc7 {[%clk 0:00:26.3]} 49. Re8 {[%clk 0:00:06.8]} 49... b2 {[%clk
0:00:27.7]} 0-1

[Event "*** Titled Tuesday Blitz"]
[Site "Chess.com"]
[Date "2019.06.04"]
[Round "2"]
[White "Haykos"]
[Black "JoachimMouhamad"]
[Result "1-0"]
[WhiteElo "2590"]
[BlackElo "2335"]
[TimeControl "180+2"]
[EndTime "13:24:33 PDT"]
[Termination "Haykos won by resignation"]

1. e4 {[%clk 0:03:01.9]} 1... c5 {[%clk 0:03:00.1]} 2. Nf3 {[%clk 0:03:02.4]}
2... Nc6 {[%clk 0:03:01.6]} 3. Bb5 {[%clk 0:03:03.8]} 3... g6 {[%clk 0:03:01.7]}
4. Bxc6 {[%clk 0:03:05.1]} 4... dxc6 {[%clk 0:02:58.8]} 5. h3 {[%clk 0:03:06]}
5... Bg7 {[%clk 0:02:59.9]} 6. d3 {[%clk 0:03:07.9]} 6... Nf6 {[%clk 0:03:01]}
7. Nc3 {[%clk 0:03:09]} 7... Nd7 {[%clk 0:02:59.3]} 8. Be3 {[%clk 0:03:10.9]}
8... e5 {[%clk 0:02:58.9]} 9. Qd2 {[%clk 0:03:12.8]} 9... b6 {[%clk 0:02:58.5]}
10. O-O-O {[%clk 0:02:57.9]} 10... Nf8 {[%clk 0:02:57.8]} 11. Bh6 {[%clk
0:02:52.6]} 11... Bxh6 {[%clk 0:02:57.6]} 12. Qxh6 {[%clk 0:02:54.5]} 12... Ne6
{[%clk 0:02:59.5]} 13. Nxe5 {[%clk 0:02:53.2]} 13... Qf6 {[%clk 0:02:59]} 14.
Ng4 {[%clk 0:02:49.1]} 14... Qf4+ {[%clk 0:02:48.6]} 15. Qxf4 {[%clk 0:02:44.5]}
15... Nxf4 {[%clk 0:02:50.5]} 16. Ne3 {[%clk 0:02:45.7]} 16... O-O {[%clk
0:02:45.9]} 17. Kd2 {[%clk 0:02:39.4]} 17... Be6 {[%clk 0:02:44.6]} 18. Ne2
{[%clk 0:02:39.4]} 18... Nxe2 {[%clk 0:02:39.9]} 19. Kxe2 {[%clk 0:02:41.3]}
19... f5 {[%clk 0:02:40.6]} 20. exf5 {[%clk 0:02:41.2]} 20... gxf5 {[%clk
0:02:39.1]} 21. f4 {[%clk 0:02:42]} 21... Rae8 {[%clk 0:02:36.7]} 22. Kf2 {[%clk
0:02:42.2]} 22... Re7 {[%clk 0:02:34.3]} 23. Rhe1 {[%clk 0:02:42.5]} 23... Rfe8
{[%clk 0:02:33.2]} 24. a3 {[%clk 0:02:29.4]} 24... Kg7 {[%clk 0:02:33.9]} 25. g4
{[%clk 0:02:30]} 25... Kf6 {[%clk 0:02:34.2]} 26. Nxf5 {[%clk 0:01:59.5]} 26...
Bxf5 {[%clk 0:02:34.8]} 27. Rxe7 {[%clk 0:02:00.7]} 27... Rxe7 {[%clk
0:02:36.7]} 28. gxf5 {[%clk 0:02:01.7]} 28... Kxf5 {[%clk 0:02:38.6]} 29. Kf3
{[%clk 0:02:03.3]} 29... h6 {[%clk 0:02:32.8]} 30. Rg1 {[%clk 0:02:02]} 30...
Re8 {[%clk 0:02:22.9]} 31. h4 {[%clk 0:01:53.2]} 31... Re7 {[%clk 0:02:21.3]}
32. h5 {[%clk 0:01:54.4]} 32... Re8 {[%clk 0:02:22.3]} 33. Rg6 {[%clk
0:01:55.2]} 33... Re1 {[%clk 0:02:22.6]} 34. Rxh6 {[%clk 0:01:54.8]} 34... Rf1+
{[%clk 0:02:23.3]} 35. Ke2 {[%clk 0:01:55.1]} 35... Rxf4 {[%clk 0:02:23.9]} 36.
Rxc6 {[%clk 0:01:56]} 36... Rh4 {[%clk 0:02:24.1]} 37. h6 {[%clk 0:01:56.1]}
37... Ke5 {[%clk 0:02:18.5]} 38. Kd2 {[%clk 0:01:56.6]} 38... Kd5 {[%clk
0:02:18.1]} 39. Rg6 {[%clk 0:01:57]} 39... Kd4 {[%clk 0:02:15.4]} 40. Rd6+
{[%clk 0:01:17.2]} 40... Ke5 {[%clk 0:02:16.7]} 41. Rd7 {[%clk 0:01:18.5]} 41...
Rxh6 {[%clk 0:02:09.7]} 42. Rxa7 {[%clk 0:01:19.4]} 42... Rh2+ {[%clk
0:02:04.4]} 43. Kc3 {[%clk 0:01:20.3]} 43... Kd5 {[%clk 0:02:06]} 44. Rg7 {[%clk
0:01:17.2]} 44... Kc6 {[%clk 0:02:03.1]} 45. b4 {[%clk 0:01:10.7]} 45... Kb5
{[%clk 0:01:58.4]} 46. Kb3 {[%clk 0:01:04]} 46... Rh6 {[%clk 0:01:35.7]} 47. Rc7
{[%clk 0:00:57.2]} 47... cxb4 {[%clk 0:01:16.9]} 48. axb4 {[%clk 0:00:59.1]}
48... Ka6 {[%clk 0:01:05.2]} 49. c4 {[%clk 0:00:28.2]} 49... b5 {[%clk
0:01:06.6]} 50. c5 {[%clk 0:00:28.2]} 50... Rh1 {[%clk 0:00:59.2]} 51. Rc6+
{[%clk 0:00:26.9]} 51... Ka7 {[%clk 0:00:59.1]} 52. Rb6 {[%clk 0:00:28.3]} 52...
Rb1+ {[%clk 0:00:57.5]} 53. Kc3 {[%clk 0:00:29.5]} 53... Rc1+ {[%clk 0:00:57.1]}
54. Kd4 {[%clk 0:00:30.7]} 1-0

[Event "*** Titled Tuesday Blitz"]
[Site "Chess.com"]
[Date "2019.06.04"]
[Round "2"]
[White "slowdgehammer"]
[Black "Obito24"]
[Result "0-1"]
[WhiteElo "2374"]
[BlackElo "2741"]
[TimeControl "180+2"]
[EndTime "13:24:35 PDT"]
[Termination "Obito24 won by resignation"]

1. e4 {[%clk 0:03:01.9]} 1... c5 {[%clk 0:02:58.8]} 2. Nc3 {[%clk 0:03:02.4]}
2... e6 {[%clk 0:02:56.1]} 3. f4 {[%clk 0:03:03.6]} 3... d5 {[%clk 0:02:56.9]}
4. Nf3 {[%clk 0:03:04.5]} 4... dxe4 {[%clk 0:02:58.3]} 5. Nxe4 {[%clk 0:03:05]}
5... Nf6 {[%clk 0:03:00.2]} 6. Bb5+ {[%clk 0:03:05]} 6... Bd7 {[%clk 0:03:00.4]}
7. Qe2 {[%clk 0:03:04.6]} 7... Nxe4 {[%clk 0:02:58.3]} 8. Bxd7+ {[%clk 0:03:05]}
8... Qxd7 {[%clk 0:02:59.8]} 9. Qxe4 {[%clk 0:03:06.9]} 9... Qd5 {[%clk
0:02:56.8]} 10. d3 {[%clk 0:03:06.4]} 10... Nc6 {[%clk 0:02:57.7]} 11. a3 {[%clk
0:02:55.5]} 11... Be7 {[%clk 0:02:50.8]} 12. O-O {[%clk 0:02:55.5]} 12... O-O
{[%clk 0:02:50]} 13. Be3 {[%clk 0:02:37.9]} 13... f5 {[%clk 0:02:49]} 14. Qxd5
{[%clk 0:02:32.6]} 14... exd5 {[%clk 0:02:48.9]} 15. Rae1 {[%clk 0:02:32.1]}
15... Rae8 {[%clk 0:02:44.4]} 16. Re2 {[%clk 0:02:19.9]} 16... Bf6 {[%clk
0:02:25.5]} 17. Rfe1 {[%clk 0:02:14.1]} 17... d4 {[%clk 0:01:43]} 18. Bd2 {[%clk
0:02:13.1]} 18... Rxe2 {[%clk 0:01:44.9]} 19. Rxe2 {[%clk 0:02:12.5]} 19... Kf7
{[%clk 0:01:46.3]} 20. Kf2 {[%clk 0:02:03.2]} 20... b5 {[%clk 0:01:44.7]} 21. h3
{[%clk 0:02:01.4]} 21... c4 {[%clk 0:01:35.7]} 22. g4 {[%clk 0:01:55.5]} 22...
g6 {[%clk 0:01:34.8]} 23. g5 {[%clk 0:01:43.6]} 23... Bg7 {[%clk 0:01:32.1]} 24.
h4 {[%clk 0:01:42.2]} 24... a5 {[%clk 0:01:11.2]} 25. h5 {[%clk 0:01:36.9]}
25... a4 {[%clk 0:01:06.7]} 26. h6 {[%clk 0:01:37.2]} 26... Bh8 {[%clk
0:01:06.9]} 27. Bb4 {[%clk 0:01:17.8]} 27... Nxb4 {[%clk 0:00:25.4]} 28. axb4
{[%clk 0:01:19.7]} 28... c3 {[%clk 0:00:27.3]} 29. bxc3 {[%clk 0:01:18.9]} 29...
dxc3 {[%clk 0:00:28.6]} 30. Re1 {[%clk 0:00:53.1]} 30... Ra8 {[%clk 0:00:21]}
31. Ra1 {[%clk 0:00:51]} 31... Ke6 {[%clk 0:00:20.7]} 32. Ra3 {[%clk 0:00:26.2]}
32... Kd5 {[%clk 0:00:20.7]} 33. Ke3 {[%clk 0:00:21.1]} 33... Re8+ {[%clk
0:00:18]} 34. Kf2 {[%clk 0:00:22.4]} 34... Bd4+ {[%clk 0:00:18.9]} 35. Nxd4
{[%clk 0:00:12.2]} 35... Kxd4 {[%clk 0:00:19.4]} 36. Kf3 {[%clk 0:00:14.1]}
36... Re3+ {[%clk 0:00:19.5]} 37. Kf2 {[%clk 0:00:13.7]} 37... Rh3 {[%clk
0:00:14.9]} 38. Kg2 {[%clk 0:00:12.9]} 38... Rh4 {[%clk 0:00:15.8]} 39. Kg3
{[%clk 0:00:12]} 39... Rh1 {[%clk 0:00:17.1]} 40. Kf2 {[%clk 0:00:10.8]} 40...
Rb1 {[%clk 0:00:17.2]} 41. Ra2 {[%clk 0:00:12.3]} 41... Rb2 {[%clk 0:00:17.3]}
42. Ra1 {[%clk 0:00:13.7]} 42... Rxc2+ {[%clk 0:00:18.4]} 43. Kf3 {[%clk
0:00:15.6]} 43... Rd2 {[%clk 0:00:18.4]} 44. Re1 {[%clk 0:00:16.3]} 44... c2
{[%clk 0:00:19.3]} 0-1

[Event "*** Titled Tuesday Blitz"]
[Site "Chess.com"]
[Date "2019.06.04"]
[Round "2"]
[White "FMJoseHerrera"]
[Black "gena217"]
[Result "0-1"]
[WhiteElo "2623"]
[BlackElo "2911"]
[TimeControl "180+2"]
[EndTime "13:24:38 PDT"]
[Termination "gena217 won on time"]

1. Nf3 {[%clk 0:03:01.9]} 1... d5 {[%clk 0:02:59.7]} 2. g3 {[%clk 0:03:03.8]}
2... Nd7 {[%clk 0:03:01.2]} 3. Bg2 {[%clk 0:03:04.7]} 3... e5 {[%clk 0:03:02.3]}
4. O-O {[%clk 0:03:05.5]} 4... Ngf6 {[%clk 0:03:03.9]} 5. c4 {[%clk 0:03:06.2]}
5... dxc4 {[%clk 0:03:04.1]} 6. Qa4 {[%clk 0:03:05.6]} 6... Bd6 {[%clk
0:02:53.8]} 7. Qxc4 {[%clk 0:03:04.7]} 7... O-O {[%clk 0:02:54.3]} 8. d3 {[%clk
0:03:05.9]} 8... c6 {[%clk 0:02:48.8]} 9. Qc2 {[%clk 0:03:05.7]} 9... a5 {[%clk
0:02:46]} 10. Nbd2 {[%clk 0:03:03.7]} 10... h6 {[%clk 0:02:45.3]} 11. b3 {[%clk
0:03:00]} 11... Re8 {[%clk 0:02:42.8]} 12. Bb2 {[%clk 0:02:59.7]} 12... Nb6
{[%clk 0:02:26.6]} 13. e4 {[%clk 0:02:59.7]} 13... a4 {[%clk 0:02:22.1]} 14.
Rfd1 {[%clk 0:02:57.4]} 14... Bg4 {[%clk 0:02:21.8]} 15. h3 {[%clk 0:02:54.7]}
15... Be6 {[%clk 0:02:20.6]} 16. Nc4 {[%clk 0:02:54]} 16... Nxc4 {[%clk
0:02:00.4]} 17. dxc4 {[%clk 0:02:54]} 17... Qe7 {[%clk 0:02:00.8]} 18. Nxe5
{[%clk 0:02:51.7]} 18... Bxh3 {[%clk 0:01:46.9]} 19. Nxc6 {[%clk 0:02:33.8]}
19... bxc6 {[%clk 0:01:48.8]} 20. Bxh3 {[%clk 0:02:34.8]} 20... Nxe4 {[%clk
0:01:45.5]} 21. Bg2 {[%clk 0:02:32.9]} 21... Bc5 {[%clk 0:01:41.7]} 22. Bd4
{[%clk 0:02:29.6]} 22... axb3 {[%clk 0:01:42.1]} 23. Qxe4 {[%clk 0:02:14.8]}
23... Qxe4 {[%clk 0:01:41.5]} 24. Bxe4 {[%clk 0:02:16.7]} 24... Rxe4 {[%clk
0:01:43.4]} 25. Bxc5 {[%clk 0:02:17.2]} 25... Rxc4 {[%clk 0:01:44.8]} 26. Bd4
{[%clk 0:01:35.9]} 26... bxa2 {[%clk 0:01:44.1]} 27. Rd2 {[%clk 0:01:18.4]}
27... Rd8 {[%clk 0:01:33.6]} 28. Be3 {[%clk 0:01:19.2]} 28... Rxd2 {[%clk
0:01:34.8]} 29. Bxd2 {[%clk 0:01:20.3]} 29... Rc2 {[%clk 0:01:36.2]} 30. Be3
{[%clk 0:01:20.9]} 30... g5 {[%clk 0:01:09.5]} 31. g4 {[%clk 0:01:18.7]} 31...
Kh7 {[%clk 0:01:08.7]} 32. Kg2 {[%clk 0:01:19.8]} 32... Kg6 {[%clk 0:01:09.6]}
33. Kf3 {[%clk 0:01:21.2]} 33... f5 {[%clk 0:01:10.5]} 34. gxf5+ {[%clk
0:01:20.6]} 34... Kxf5 {[%clk 0:01:12.4]} 35. Bb6 {[%clk 0:01:01]} 35... h5
{[%clk 0:01:09.2]} 36. Ke3 {[%clk 0:00:58.7]} 36... c5 {[%clk 0:00:57.6]} 37.
Kd3 {[%clk 0:00:59.6]} 37... Rxf2 {[%clk 0:00:56.6]} 38. Bxc5 {[%clk 0:01:00.8]}
38... Rg2 {[%clk 0:00:50.1]} 39. Be3 {[%clk 0:00:51.8]} 39... h4 {[%clk
0:00:42]} 40. Rf1+ {[%clk 0:00:25]} 40... Kg4 {[%clk 0:00:33]} 41. Ke4 {[%clk
0:00:20.9]} 41... h3 {[%clk 0:00:33]} 42. Bd4 {[%clk 0:00:14.5]} 42... h2 {[%clk
0:00:31.3]} 43. Rh1 {[%clk 0:00:14.9]} 43... Kh3 {[%clk 0:00:31.3]} 44. Kf3
{[%clk 0:00:13.9]} 44... g4+ {[%clk 0:00:32.4]} 45. Kf4 {[%clk 0:00:14.8]} 45...
g3 {[%clk 0:00:33.8]} 46. Kf3 {[%clk 0:00:15.1]} 46... Rd2 {[%clk 0:00:34.5]}
47. Be5 {[%clk 0:00:15.4]} 47... Rf2+ {[%clk 0:00:33.4]} 48. Ke3 {[%clk
0:00:16.6]} 48... Kg2 {[%clk 0:00:32.2]} 49. Bxg3 {[%clk 0:00:06.5]} 49... Kxh1
{[%clk 0:00:29]} 0-1

[Event "*** Titled Tuesday Blitz"]
[Site "Chess.com"]
[Date "2019.06.04"]
[Round "2"]
[White "DivyaDeshmukh23"]
[Black "nailbeshirli"]
[Result "0-1"]
[WhiteElo "2382"]
[BlackElo "2655"]
[TimeControl "180+2"]
[EndTime "13:24:38 PDT"]
[Termination "nailbeshirli won by resignation"]

1. e4 {[%clk 0:03:01.9]} 1... b6 {[%clk 0:03:01.5]} 2. d4 {[%clk 0:03:02.1]}
2... Bb7 {[%clk 0:03:03.4]} 3. Bd3 {[%clk 0:03:02.7]} 3... e6 {[%clk 0:03:04.4]}
4. Nf3 {[%clk 0:03:02]} 4... Ne7 {[%clk 0:02:51.2]} 5. O-O {[%clk 0:03:01.9]}
5... g6 {[%clk 0:02:44.8]} 6. Bf4 {[%clk 0:02:58.7]} 6... Bg7 {[%clk 0:02:44.9]}
7. c3 {[%clk 0:02:50.8]} 7... O-O {[%clk 0:02:45]} 8. Nbd2 {[%clk 0:02:50.6]}
8... d6 {[%clk 0:02:44.4]} 9. Qe2 {[%clk 0:02:50.8]} 9... Nd7 {[%clk 0:02:45.8]}
10. Rae1 {[%clk 0:02:48.9]} 10... e5 {[%clk 0:02:45.2]} 11. Bg3 {[%clk
0:02:45.5]} 11... Kh8 {[%clk 0:02:44.1]} 12. d5 {[%clk 0:02:42.7]} 12... h6
{[%clk 0:02:42.1]} 13. Nh4 {[%clk 0:02:37.3]} 13... g5 {[%clk 0:02:37.8]} 14.
Nhf3 {[%clk 0:02:29.5]} 14... f5 {[%clk 0:02:28.5]} 15. exf5 {[%clk 0:02:28.9]}
15... Bxd5 {[%clk 0:01:56.9]} 16. c4 {[%clk 0:02:26.3]} 16... Bb7 {[%clk
0:01:53.1]} 17. h4 {[%clk 0:02:00]} 17... Nxf5 {[%clk 0:01:44.3]} 18. hxg5
{[%clk 0:01:58.8]} 18... Nc5 {[%clk 0:01:44.4]} 19. gxh6 {[%clk 0:01:54.5]}
19... Bxh6 {[%clk 0:01:03.4]} 20. Bxf5 {[%clk 0:01:48.8]} 20... Rxf5 {[%clk
0:01:01.9]} 21. Nh4 {[%clk 0:01:49.6]} 21... Rg5 {[%clk 0:00:56.6]} 22. b4
{[%clk 0:01:50.2]} 22... Ne6 {[%clk 0:00:54.3]} 23. Ne4 {[%clk 0:01:51.2]} 23...
Bxe4 {[%clk 0:00:28.8]} 24. Qxe4 {[%clk 0:01:53.1]} 24... Qg8 {[%clk 0:00:29.8]}
25. Qd5 {[%clk 0:01:21.3]} 25... Rf8 {[%clk 0:00:29.5]} 26. Nf3 {[%clk
0:01:11.8]} 26... Rgf5 {[%clk 0:00:23.6]} 27. Qe4 {[%clk 0:01:07.9]} 27... Nf4
{[%clk 0:00:24.2]} 28. c5 {[%clk 0:00:55.5]} 28... d5 {[%clk 0:00:24.9]} 29. Qc2
{[%clk 0:00:54.4]} 29... e4 {[%clk 0:00:26]} 30. Nh4 {[%clk 0:00:54.6]} 30...
Rg5 {[%clk 0:00:26.6]} 31. Qc3+ {[%clk 0:00:55.9]} 31... Kh7 {[%clk 0:00:26.4]}
32. cxb6 {[%clk 0:00:55.5]} 32... cxb6 {[%clk 0:00:26.9]} 33. Qc7+ {[%clk
0:00:53.8]} 33... Rf7 {[%clk 0:00:27.3]} 34. Qd6 {[%clk 0:00:55.3]} 34... Nh5
{[%clk 0:00:26.2]} 35. Rd1 {[%clk 0:00:48.7]} 35... Bf8 {[%clk 0:00:25.9]} 36.
Qc6 {[%clk 0:00:33.6]} 36... Rf6 {[%clk 0:00:26.6]} 37. Qd7+ {[%clk 0:00:30.6]}
37... Rf7 {[%clk 0:00:27.4]} 38. Qh3 {[%clk 0:00:30.4]} 38... Bxb4 {[%clk
0:00:25.9]} 39. Bh2 {[%clk 0:00:15.8]} 39... Bc5 {[%clk 0:00:26.1]} 40. Kh1
{[%clk 0:00:15.7]} 40... Rf6 {[%clk 0:00:25.7]} 41. g3 {[%clk 0:00:16.7]} 41...
Qf7 {[%clk 0:00:25.6]} 42. Ng2 {[%clk 0:00:15.9]} 42... Rh6 {[%clk 0:00:26.1]}
43. Qc8 {[%clk 0:00:14.6]} 43... Nf6 {[%clk 0:00:24.7]} 44. Nh4 {[%clk
0:00:15.8]} 44... Ng4 {[%clk 0:00:24.9]} 45. Qd8 {[%clk 0:00:15.2]} 45... Rxh4
{[%clk 0:00:24.9]} 46. gxh4 {[%clk 0:00:10.2]} 46... Qf3+ {[%clk 0:00:25.3]} 47.
Kg1 {[%clk 0:00:11.6]} 47... Bxf2+ {[%clk 0:00:24.8]} 0-1

[Event "*** Titled Tuesday Blitz"]
[Site "Chess.com"]
[Date "2019.06.04"]
[Round "2"]
[White "PowerThinking2650"]
[Black "Farrukh_Amonatov"]
[Result "0-1"]
[WhiteElo "2371"]
[BlackElo "2813"]
[TimeControl "180+2"]
[EndTime "13:24:47 PDT"]
[Termination "Farrukh_Amonatov won by resignation"]

1. e4 {[%clk 0:03:01.9]} 1... c5 {[%clk 0:02:58.1]} 2. Nf3 {[%clk 0:03:01.3]}
2... d6 {[%clk 0:02:58.6]} 3. d4 {[%clk 0:02:58.6]} 3... cxd4 {[%clk 0:02:59.5]}
4. Nxd4 {[%clk 0:03:00.2]} 4... Nf6 {[%clk 0:03:00.6]} 5. Nc3 {[%clk 0:03:00.6]}
5... a6 {[%clk 0:03:00.3]} 6. Be3 {[%clk 0:02:58.8]} 6... e5 {[%clk 0:02:58.6]}
7. Nb3 {[%clk 0:02:58.9]} 7... Be7 {[%clk 0:02:57.5]} 8. f3 {[%clk 0:02:58.9]}
8... Be6 {[%clk 0:02:57.3]} 9. Qd2 {[%clk 0:03:00.1]} 9... O-O {[%clk
0:02:54.6]} 10. O-O-O {[%clk 0:03:00.7]} 10... Nbd7 {[%clk 0:02:56.1]} 11. g4
{[%clk 0:03:00.4]} 11... b5 {[%clk 0:02:56.8]} 12. g5 {[%clk 0:02:57.4]} 12...
Nh5 {[%clk 0:02:57.4]} 13. Rg1 {[%clk 0:02:52.1]} 13... Rc8 {[%clk 0:02:35.6]}
14. Nd5 {[%clk 0:02:51.6]} 14... Bxd5 {[%clk 0:02:31.9]} 15. exd5 {[%clk
0:02:52.1]} 15... f5 {[%clk 0:02:12.5]} 16. gxf6 {[%clk 0:02:51.3]} 16... Bxf6
{[%clk 0:02:12.2]} 17. Na5 {[%clk 0:02:40.9]} 17... Nf4 {[%clk 0:02:10.7]} 18.
Nc6 {[%clk 0:02:36.6]} 18... Qe8 {[%clk 0:02:06.2]} 19. Bxf4 {[%clk 0:02:30.9]}
19... exf4 {[%clk 0:01:57.4]} 20. Bh3 {[%clk 0:02:31.6]} 20... Rc7 {[%clk
0:01:55.5]} 21. Qa5 {[%clk 0:01:31.6]} 21... Rb7 {[%clk 0:01:52.6]} 22. Bxd7
{[%clk 0:01:26.8]} 22... Rxd7 {[%clk 0:01:29.4]} 23. Rge1 {[%clk 0:01:14.2]}
23... Qh5 {[%clk 0:01:28]} 24. Qxa6 {[%clk 0:00:36.7]} 24... Qxf3 {[%clk
0:01:26.9]} 25. Qxb5 {[%clk 0:00:37.7]} 25... Qh3 {[%clk 0:01:19.6]} 26. a4
{[%clk 0:00:17.4]} 26... f3 {[%clk 0:01:16.7]} 27. a5 {[%clk 0:00:17.8]} 27...
f2 {[%clk 0:01:15]} 28. Rf1 {[%clk 0:00:18.9]} 28... Qxh2 {[%clk 0:01:09.3]} 29.
a6 {[%clk 0:00:19.8]} 29... h5 {[%clk 0:01:06.2]} 30. a7 {[%clk 0:00:19.4]}
30... Qg3 {[%clk 0:00:59]} 31. Qb8 {[%clk 0:00:17.6]} 31... Rxa7 {[%clk
0:00:33.2]} 32. Qxa7 {[%clk 0:00:18.1]} 32... h4 {[%clk 0:00:34.5]} 33. Ne7+
{[%clk 0:00:17.3]} 33... Kh8 {[%clk 0:00:31]} 34. Qxf2 {[%clk 0:00:09.5]} 34...
Bg5+ {[%clk 0:00:30.7]} 35. Qd2 {[%clk 0:00:06.4]} 35... Bxd2+ {[%clk
0:00:30.5]} 36. Kxd2 {[%clk 0:00:06.9]} 36... Qg5+ {[%clk 0:00:30.2]} 37. Kd3
{[%clk 0:00:07.5]} 37... Rxf1 {[%clk 0:00:30.2]} 38. Rxf1 {[%clk 0:00:07.7]}
38... Qxe7 {[%clk 0:00:30.8]} 39. Rf5 {[%clk 0:00:08.6]} 39... g6 {[%clk
0:00:24.5]} 40. Rf4 {[%clk 0:00:08.9]} 40... g5 {[%clk 0:00:23.7]} 41. Re4
{[%clk 0:00:10.1]} 41... Qh7 {[%clk 0:00:16.5]} 42. Ke3 {[%clk 0:00:10.3]} 42...
Qf5 {[%clk 0:00:17.3]} 43. c4 {[%clk 0:00:09.4]} 43... h3 {[%clk 0:00:17.2]} 44.
Re6 {[%clk 0:00:09.1]} 44... Kg7 {[%clk 0:00:15.4]} 45. Rxd6 {[%clk 0:00:09.5]}
45... Qe5+ {[%clk 0:00:15.4]} 46. Kd3 {[%clk 0:00:09.5]} 46... Qxd6 {[%clk
0:00:17.3]} 47. b3 {[%clk 0:00:10.9]} 47... h2 {[%clk 0:00:17.9]} 0-1